fUSD/lending_fUSD_20241227
["ID","MTS","AMOUNT","RATE_DAILY","PERIOD"]
[346800671,1735297661710,-500.0,0.00010889,2]
[346800672,1735297661746,-501.61129221,0.00010889,2]
[346800673,1735297661786,-757.09,0.00010889,2]
[346800674,1735297661823,-501.34304649,0.00010889,2]
[346800675,1735297661859,-500.0,0.00010889,2]
[346800676,1735297661897,-500.0,0.00010889,2]
[346800677,1735297661935,-500.0,0.00010889,2]
[346800678,1735297661973,-500.0,0.00010889,2]
[346800679,1735297662010,-501.61545183,0.00010889,2]
[346800680,1735297662047,-1025.92,0.00010889,2]
[346800681,1735297662084,-500.0,0.00010889,2]
[346800682,1735297662122,-500.0,0.00010889,2]
[346800683,1735297662160,-500.40181799,0.00010889,2]
[346800684,1735297662199,-501.91051,0.00010889,2]
[346800685,1735297662235,-500.0,0.00010889,2]
[346800686,1735297662272,-500.0,0.00010889,2]
[346800687,1735297662309,-501.38588844,0.00010889,2]
[346800688,1735297662344,-500.0,0.00010889,2]
[346800689,1735297662380,-501.01802147,0.00010889,2]
[346800690,1735297662418,-500.0,0.00010889,2]
[346800691,1735297662455,-500.0,0.00010889,2]
[346800692,1735297662492,-598.77,0.00010889,2]
[346800693,1735297662529,-1730.59,0.00010889,2]
[346800694,1735297662567,-500.0,0.00010889,2]
[346800695,1735297662604,-1633.99,0.00010889,2]
[346800696,1735297662640,-500.0,0.00010889,2]
[346800697,1735297662676,-500.0,0.00010889,2]
[346800698,1735297662712,-500.0,0.00010889,2]
[346800699,1735297662748,-501.18659539,0.00010889,2]
[346800700,1735297662784,-500.0,0.00010889,2]
[346800701,1735297662824,-500.0,0.00010889,2]
[346800702,1735297662860,-500.0,0.00010889,2]
[346800703,1735297662898,-799.17,0.00010889,2]
[346800704,1735297662935,-790.26,0.00010889,2]
[346800705,1735297662972,-500.0,0.00010889,2]
[346800706,1735297663008,-697.84,0.00010889,2]
[346800707,1735297663043,-500.0,0.00010889,2]
[346800708,1735297663079,-2132.22,0.00010889,2]
[346800709,1735297663116,-808.35,0.00010889,2]
[346800710,1735297663151,-500.0,0.00010889,2]
[346800711,1735297663189,-500.0,0.00010889,2]
[346800712,1735297663224,-500.2461643,0.00010889,2]
[346800713,1735297663258,-500.0,0.00010889,2]
[346800714,1735297663293,-500.0,0.00010889,2]
[346800715,1735297663329,-500.0,0.00010889,2]
[346800716,1735297663365,-291.1085337,0.00010889,2]
[346800717,1735297663402,-500.0,0.00010889,2]
[346800718,1735297663440,-501.36158088,0.00010889,2]
[346800719,1735297663479,-1117.66,0.00010889,2]
[346800720,1735297663518,-500.99262757,0.00010889,2]
[346800721,1735297663556,-500.0,0.00010889,2]
[346800722,1735297663595,-500.0,0.00010889,2]
[346800723,1735297663635,-500.31436605,0.00010889,2]
[346800724,1735297663678,-500.76232006,0.00010889,2]
[346800725,1735297663720,-500.0,0.00010889,2]
[346800726,1735297663759,-532.70752656,0.00010889,2]
[346800727,1735297663799,-501.394843,0.00010889,2]
[346800728,1735297663837,-1183.89,0.00010889,2]
[346800729,1735297663875,-500.0,0.00010889,2]
[346800730,1735297663915,-500.0,0.00010889,2]
[346800731,1735297663956,-966.55,0.00010889,2]
[346800732,1735297663993,-529.26,0.00010889,2]
[346800733,1735297664031,-500.0,0.00010889,2]
[346800734,1735297664068,-500.0,0.00010889,2]
[346800735,1735297664105,-685.66,0.00010889,2]
[346800736,1735297664143,-500.0,0.00010889,2]
[346800737,1735297664183,-511.42944173,0.00010889,2]
[346800738,1735297664220,-608.56557025,0.00010889,2]
[346800739,1735297664257,-500.0,0.00010889,2]
[346800740,1735297664296,-500.0,0.00010889,2]
[346800741,1735297664334,-500.0,0.00010889,2]
[346800742,1735297664369,-500.0,0.00010889,2]
[346800743,1735297664407,-500.0,0.00010889,2]
[346800744,1735297664446,-500.0,0.00010889,2]
[346800745,1735297664484,-1450.92,0.00010889,2]
[346800746,1735297664521,-384.74528249,0.00010889,2]
[346800747,1735297664559,-1696.6,0.00010889,2]
[346800748,1735297664594,-504.41996866,0.00010889,2]
[346800749,1735297664631,-500.0,0.00010889,2]
[346800750,1735297664669,-500.0,0.00010889,2]
[346800751,1735297664706,-500.0,0.00010889,2]
[346800752,1735297664744,-1667.13,0.00010889,2]
[346800753,1735297664782,-500.0,0.00010889,2]
[346800754,1735297664824,-501.26139936,0.00010889,2]
[346800755,1735297664863,-800.71,0.00010889,2]
[346800756,1735297664902,-500.0,0.00010889,2]
[346800757,1735297664940,-500.0,0.00010889,2]
[346800758,1735297664979,-501.29518589,0.00010889,2]
[346800759,1735297665019,-1799.5,0.00010889,2]
[346800760,1735297665058,-1739.29,0.00010889,2]
[346800761,1735297665098,-500.64442047,0.00010889,2]
[346800762,1735297665139,-799.73,0.00010889,2]
[346800763,1735297665178,-884.1,0.00010889,2]
[346800764,1735297665216,-1832.6,0.00010889,2]
[346800765,1735297665254,-500.0,0.00010889,2]
[346800766,1735297665290,-500.89030472,0.00010889,2]
[346800767,1735297665327,-500.0,0.00010889,2]
[346800768,1735297665363,-500.0,0.00010889,2]
[346800769,1735297665409,-500.0,0.00010889,2]
[346800770,1735297665451,-500.0,0.00010889,2]
[346800771,1735297665499,-500.0,0.00010889,2]
[346800772,1735297665545,-1010.64,0.00010889,2]
[346800773,1735297665592,-500.0,0.00010889,2]
[346800774,1735297665637,-501.55234543,0.00010889,2]
[346800775,1735297665682,-500.0,0.00010889,2]
[346800776,1735297665728,-1164.95,0.00010889,2]
[346800777,1735297665772,-500.0,0.00010889,2]
[346800778,1735297665810,-500.0,0.00010889,2]
[346800779,1735297665848,-964.79,0.00010889,2]
[346800780,1735297665885,-500.0,0.00010889,2]
[346800781,1735297665924,-504.70868543,0.00010889,2]
[346800782,1735297665963,-500.0,0.00010889,2]
[346800783,1735297666005,-536.86,0.00010889,2]
[346800784,1735297666046,-500.0,0.00010889,2]
[346800785,1735297666088,-501.19025941,0.00010889,2]
[346800786,1735297666125,-500.80770393,0.00010889,2]
[346800787,1735297666165,-501.1244292,0.00010889,2]
[346800788,1735297666204,-500.0,0.00010889,2]
[346800789,1735297666243,-500.0,0.00010889,2]
[346800790,1735297666281,-500.0,0.00010889,2]
[346800791,1735297666320,-500.0,0.00010889,2]
[346800792,1735297666357,-500.0,0.00010889,2]
[346800793,1735297666397,-1032.48,0.00010889,2]
[346800794,1735297666441,-524.00830612,0.00010889,2]
[346800795,1735297666480,-500.0,0.00010889,2]
[346800796,1735297666521,-501.09474597,0.00010889,2]
[346800797,1735297666559,-1964.77,0.00010889,2]
[346800798,1735297666594,-500.0,0.00010889,2]
[346800799,1735297666631,-500.0,0.00010889,2]
[346800800,1735297666667,-500.0,0.00010889,2]
[346800801,1735297666704,-1521.66,0.00010889,2]
[346800802,1735297666740,-633.61,0.00010889,2]
[346800803,1735297666777,-918.51,0.00010889,2]
[346800804,1735297666815,-674.89,0.00010889,2]
[346800805,1735297666854,-236.49440271,0.00010889,2]
[346800806,1735297666894,-500.0,0.00010889,2]
[346800807,1735297666932,-500.0,0.00010889,2]
[346800808,1735297666971,-501.50824601,0.00010889,2]
[346800809,1735297667007,-500.0,0.00010889,2]
[346800810,1735297667046,-500.0,0.00010889,2]
[346800811,1735297667084,-500.0,0.00010889,2]
[346800812,1735297667122,-500.0,0.00010889,2]
[346800813,1735297667161,-500.0,0.00010889,2]
[346800814,1735297667201,-500.0,0.00010889,2]
[346800815,1735297667238,-500.0,0.00010889,2]
[346800816,1735297667277,-1025.9,0.00010889,2]
[346800817,1735297667315,-500.0,0.00010889,2]
[346800818,1735297667351,-500.0,0.00010889,2]
[346800819,1735297667388,-500.0,0.00010889,2]
[346800820,1735297667423,-740.68,0.00010889,2]
[346800821,1735297667460,-500.0,0.00010889,2]
[346800822,1735297667497,-500.0,0.00010889,2]
[346800823,1735297667532,-735.43,0.00010889,2]
[346800824,1735297667784,-500.0,0.00010889,2]
[346800825,1735297667824,-1221.45,0.00010889,2]
[346800826,1735297667862,-500.0,0.00010889,2]
[346800827,1735297667900,-500.35838619,0.00010889,2]
[346800828,1735297667942,-500.0,0.00010889,2]
[346800829,1735297667980,-500.66842915,0.00010889,2]
[346800830,1735297668017,-500.0,0.00010889,2]
[346800831,1735297668057,-500.0,0.00010889,2]
[346800832,1735297668097,-500.0,0.00010889,2]
[346800833,1735297668138,-500.54420064,0.00010889,2]
[346800834,1735297668179,-500.90009942,0.00010889,2]
[346800835,1735297668222,-500.0,0.00010889,2]
[346800836,1735297668265,-500.0,0.00010889,2]
[346800837,1735297668307,-706.7,0.00010889,2]
[346800838,1735297668350,-500.0,0.00010889,2]
[346800839,1735297668390,-500.0,0.00010889,2]
[346800840,1735297668431,-500.0,0.00010889,2]
[346800841,1735297668469,-500.89159136,0.00010889,2]
[346800842,1735297668508,-500.0,0.00010889,2]
[346800843,1735297668546,-502.08459635,0.00010889,2]
[346800844,1735297668583,-500.0,0.00010889,2]
[346800845,1735297668622,-500.0,0.00010889,2]
[346800846,1735297668661,-671.52,0.00010889,2]
[346800847,1735297668700,-500.0,0.00010889,2]
[346800848,1735297668740,-500.0,0.00010889,2]
[346800849,1735297668778,-500.0,0.00010889,2]
[346800850,1735297668819,-501.05648539,0.00010889,2]
[346800851,1735297668858,-500.0,0.00010889,2]
[346800852,1735297668898,-1014.53,0.00010889,2]
[346800853,1735297668941,-500.0,0.00010889,2]
[346800854,1735297668981,-500.59106007,0.00010889,2]
[346800855,1735297669023,-500.0,0.00010889,2]
[346800856,1735297669064,-500.0,0.00010889,2]
[346800857,1735297669103,-501.40241269,0.00010889,2]
[346800858,1735297669144,-500.0,0.00010889,2]
[346800859,1735297669194,-500.0,0.00010889,2]
[346800860,1735297669236,-500.0,0.00010889,2]
[346800861,1735297669275,-500.0,0.00010889,2]
[346800862,1735297669313,-961.83,0.00010889,2]
[346800863,1735297669352,-500.0,0.00010889,2]
[346800864,1735297669389,-500.22813149,0.00010889,2]
[346800865,1735297669429,-500.0,0.00010889,2]
[346800866,1735297669469,-507.42,0.00010889,2]
[346800867,1735297669507,-309.54071572,0.00010889,2]
[346800868,1735297669545,-1103.26,0.00010889,2]
[346800869,1735297669584,-500.0,0.00010889,2]
[346800870,1735297669621,-500.0,0.00010889,2]
[346800871,1735297669660,-500.0,0.00010889,2]
[346800872,1735297669700,-500.0,0.00010889,2]
[346800873,1735297669736,-500.0,0.00010889,2]
[346800874,1735297669774,-500.0,0.00010889,2]
[346800875,1735297669810,-500.0,0.00010889,2]
[346800876,1735297669847,-397.38750945,0.00010889,2]
[346800877,1735297669885,-861.41,0.00010889,2]
[346800878,1735297669922,-500.0,0.00010889,2]
[346800879,1735297669960,-500.0,0.00010889,2]
[346800880,1735297669997,-500.0,0.00010889,2]
[346800881,1735297670033,-500.0,0.00010889,2]
[346800882,1735297670072,-1261.47,0.00010889,2]
[346800883,1735297670109,-500.0,0.00010889,2]
[346800884,1735297670147,-500.0,0.00010889,2]
[346800885,1735297670187,-1555.38,0.00010889,2]
[346800886,1735297670226,-500.0,0.00010889,2]
[346800887,1735297670262,-500.0,0.00010889,2]
[346800888,1735297670301,-500.0,0.00010889,2]
[346800889,1735297670335,-500.0,0.00010889,2]
[346800890,1735297670379,-500.0,0.00010889,2]
[346800891,1735297670422,-500.0,0.00010889,2]
[346800892,1735297670467,-500.0,0.00010889,2]
[346800893,1735297670509,-500.0,0.00010889,2]
[346800894,1735297670545,-500.0,0.00010889,2]
[346800895,1735297670589,-500.85193754,0.00010889,2]
[346800896,1735297670630,-500.0,0.00010889,2]
[346800897,1735297670671,-502.45875721,0.00010889,2]
[346800898,1735297670714,-500.0,0.00010889,2]
[346800899,1735297670749,-1400.54,0.00010889,2]
[346800900,1735297670795,-500.0,0.00010889,2]
[346800901,1735297670836,-500.0,0.00010889,2]
[346800902,1735297670879,-967.0,0.00010889,2]
[346800903,1735297670919,-500.0,0.00010889,2]
[346800904,1735297670959,-500.365275,0.00010889,2]
[346800905,1735297670996,-500.0,0.00010889,2]
[346800906,1735297671033,-501.30347862,0.00010889,2]
[346800907,1735297671068,-500.0,0.00010889,2]
[346800908,1735297671105,-2033.76,0.00010889,2]
[346800909,1735297671141,-1211.35,0.00010889,2]
[346800910,1735297671177,-500.0,0.00010889,2]
[346800911,1735297671212,-499.99964594,0.00010889,2]
[346800912,1735297671249,-500.0,0.00010889,2]
[346800913,1735297671285,-501.8186649,0.00010889,2]
[346800914,1735297671321,-500.0,0.00010889,2]
[346800915,1735297671358,-1035.09,0.00010889,2]
[346800916,1735297671393,-500.0,0.00010889,2]
[346800917,1735297671431,-7483.78,0.00010889,2]
[346800918,1735297671468,-500.0,0.00010889,2]
[346800919,1735297671504,-500.0,0.00010889,2]
[346800920,1735297671542,-500.45653077,0.00010889,2]
[346800921,1735297671580,-1950.88,0.00010889,2]
[346800922,1735297671617,-638.55,0.00010889,2]
[346800923,1735297671656,-500.0,0.00010889,2]
[346800924,1735297671697,-500.0,0.00010889,2]
[346800925,1735297671736,-874.22,0.00010889,2]
[346800926,1735297671774,-1918.83,0.00010889,2]
[346800927,1735297671813,-500.0,0.00010889,2]
[346800928,1735297671849,-500.0,0.00010889,2]
[346800929,1735297671888,-500.0,0.00010889,2]
[346800930,1735297671924,-500.0,0.00010889,2]
[346800931,1735297671961,-500.0,0.00010889,2]
[346800932,1735297671998,-500.0,0.00010889,2]
[346800933,1735297672036,-3278.01,0.00010889,2]
[346800934,1735297672074,-500.46695366,0.00010889,2]
[346800935,1735297672112,-500.0,0.00010889,2]
[346800936,1735297672152,-688.34,0.00010889,2]
[346800937,1735297672191,-816.02,0.00010889,2]
[346800938,1735297672228,-500.81842408,0.00010889,2]
[346800939,1735297672266,-500.0,0.00010889,2]
[346800940,1735297672303,-506.88447637,0.00010889,2]
[346800941,1735297672345,-500.0,0.00010889,2]
[346800942,1735297672387,-1395.55,0.00010889,2]
[346800943,1735297672430,-500.0,0.00010889,2]
[346800944,1735297672468,-502.08161289,0.00010889,2]
[346800945,1735297672505,-523.24319378,0.00010889,2]
[346800946,1735297672547,-500.0,0.00010889,2]
[346800947,1735297672589,-565.12,0.00010889,2]
[346800948,1735297672626,-523.49,0.00010889,2]
[346800949,1735297672664,-500.0,0.00010889,2]
[346800950,1735297672707,-6296.8,0.00010889,2]
[346800951,1735297672744,-500.84661712,0.00010889,2]
[346800952,1735297672781,-500.0,0.00010889,2]
[346800953,1735297672819,-500.0,0.00010889,2]
[346800954,1735297672854,-1427.89,0.00010889,2]
[346800955,1735297672893,-983.52,0.00010889,2]
[346800956,1735297672931,-500.0,0.00010889,2]
[346800957,1735297672967,-500.66212435,0.00010889,2]
[346800958,1735297673004,-500.0,0.00010889,2]
[346800959,1735297673049,-500.39023661,0.00010889,2]
[346800960,1735297673095,-500.0,0.00010889,2]
[346800961,1735297673139,-500.0,0.00010889,2]
[346800962,1735297673184,-500.0,0.00010889,2]
[346800963,1735297673220,-504.35135856,0.00010889,2]
[346800964,1735297673255,-502.80366271,0.00010889,2]
[346800965,1735297673292,-766.96,0.00010889,2]
[346800966,1735297673327,-500.0,0.00010889,2]
[346800967,1735297673364,-1140.63,0.00010889,2]
[346800968,1735297673401,-500.68237158,0.00010889,2]
[346800969,1735297673438,-500.0,0.00010889,2]
[346800970,1735297673484,-579.56,0.00010889,2]
[346800971,1735297673522,-500.0,0.00010889,2]
[346800972,1735297673560,-500.0,0.00010889,2]
[346800973,1735297673598,-500.54715817,0.00010889,2]
[346800974,1735297673634,-500.0,0.00010889,2]
[346800975,1735297673674,-500.0,0.00010889,2]
[346800976,1735297673710,-500.0,0.00010889,2]
[346800977,1735297673747,-500.0,0.00010889,2]
[346800978,1735297673783,-581.74557974,0.00010889,2]
[346800979,1735297673824,-632.65,0.00010889,2]
[346800980,1735297673863,-733.0,0.00010889,2]
[346800981,1735297673899,-500.1669629,0.00010889,2]
[346800982,1735297673935,-500.0,0.00010889,2]
[346800983,1735297673974,-500.0,0.00010889,2]
[346800984,1735297674013,-500.0,0.00010889,2]
[346800985,1735297674050,-1054.62,0.00010889,2]
[346800986,1735297674087,-536.02,0.00010889,2]
[346800987,1735297674124,-500.0,0.00010889,2]
[346800988,1735297674160,-500.0,0.00010889,2]
[346800989,1735297674197,-500.0,0.00010889,2]
[346800990,1735297674234,-1114.62,0.00010889,2]
[346800991,1735297674271,-500.0,0.00010889,2]
[346800992,1735297674307,-500.0,0.00010889,2]
[346800993,1735297674344,-500.0,0.00010889,2]
[346800994,1735297674382,-500.46026021,0.00010889,2]
[346800995,1735297674420,-500.0,0.00010889,2]
[346800996,1735297674458,-500.0,0.00010889,2]
[346800997,1735297674494,-502.83256176,0.00010889,2]
[346800998,1735297674531,-500.0,0.00010889,2]
[346800999,1735297674567,-778.05,0.00010889,2]
[346801000,1735297674608,-500.0,0.00010889,2]
[346801001,1735297674644,-644.89,0.00010889,2]
[346801002,1735297674679,-500.0,0.00010889,2]
[346801003,1735297674723,-500.0,0.00010889,2]
[346801004,1735297674761,-500.0,0.00010889,2]
[346801005,1735297675033,-500.0,0.00010889,2]
[346801006,1735297675073,-500.0,0.00010889,2]
[346801007,1735297675112,-1105.14,0.00010889,2]
[346801008,1735297675152,-1068.22,0.00010889,2]
[346801009,1735297675190,-3389.36,0.00010889,2]
[346801010,1735297675226,-253.45310288,0.00010889,2]
[346801011,1735297675262,-502.19149858,0.00010889,2]
[346801012,1735297675299,-2319.71,0.00010889,2]
[346801013,1735297675334,-650.44,0.00010889,2]
[346801014,1735297675372,-500.0,0.00010889,2]
[346801015,1735297675409,-500.50995435,0.00010889,2]
[346801016,1735297675445,-500.0,0.00010889,2]
[346801017,1735297675481,-500.0,0.00010889,2]
[346801018,1735297675519,-698.39,0.00010889,2]
[346801019,1735297675556,-500.85172584,0.00010889,2]
[346801020,1735297675596,-500.0,0.00010889,2]
[346801021,1735297675633,-500.0,0.00010889,2]
[346801022,1735297675673,-1393.32,0.00010889,2]
[346801023,1735297675712,-1320.76,0.00010889,2]
[346801024,1735297675751,-500.0,0.00010889,2]
[346801025,1735297675791,-500.0,0.00010889,2]
[346801026,1735297675833,-1217.9,0.00010889,2]
[346801027,1735297675873,-500.0,0.00010889,2]
[346801028,1735297675913,-500.0,0.00010889,2]
[346801029,1735297675952,-1423.03,0.00010889,2]
[346801030,1735297675990,-500.0,0.00010889,2]
[346801031,1735297676026,-500.53817154,0.00010889,2]
[346801032,1735297676062,-500.0,0.00010889,2]
[346801033,1735297676097,-500.0,0.00010889,2]
[346801034,1735297676135,-500.0,0.00010889,2]
[346801035,1735297676173,-500.0,0.00010889,2]
[346801036,1735297676216,-500.0,0.00010889,2]
[346801037,1735297676254,-500.0,0.00010889,2]
[346801038,1735297676298,-1453.24,0.00010889,2]
[346801039,1735297676337,-500.0,0.00010889,2]
[346801040,1735297676376,-500.0,0.00010889,2]
[346801041,1735297676415,-500.0,0.00010889,2]
[346801042,1735297676459,-500.0,0.00010889,2]
[346801043,1735297676500,-7011.95,0.00010889,2]
[346801044,1735297676537,-500.0,0.00010889,2]
[346801045,1735297676574,-500.0,0.00010889,2]
[346801046,1735297676617,-500.0,0.00010889,2]
[346801047,1735297676654,-692.53,0.00010889,2]
[346801048,1735297676691,-500.0,0.00010889,2]
[346801049,1735297676728,-500.76094252,0.00010889,2]
[346801050,1735297676773,-1504.66,0.00010889,2]
[346801051,1735297676821,-500.0,0.00010889,2]
[346801052,1735297676866,-502.6999695,0.00010889,2]
[346801053,1735297676906,-500.0,0.00010889,2]
[346801054,1735297676945,-1134.07,0.00010889,2]
[346801055,1735297676985,-500.0,0.00010889,2]
[346801056,1735297677024,-500.0,0.00010889,2]
[346801057,1735297677062,-1059.98,0.00010889,2]
[346801058,1735297677099,-500.0,0.00010889,2]
[346801059,1735297677135,-1362.88,0.00010889,2]
[346801060,1735297677172,-500.0,0.00010889,2]
[346801061,1735297677208,-500.0,0.00010889,2]
[346801062,1735297677244,-500.0,0.00010889,2]
[346801063,1735297677280,-500.0,0.00010889,2]
[346801064,1735297677320,-500.0,0.00010889,2]
[346801065,1735297677364,-500.0,0.00010889,2]
[346801066,1735297677404,-500.0,0.00010889,2]
[346801067,1735297677446,-500.54511549,0.00010889,2]
[346801068,1735297677480,-2551.89,0.00010889,2]
[346801069,1735297677514,-2677.27,0.00010889,2]
[346801070,1735297677550,-645.56,0.00010889,2]
[346801071,1735297677585,-498.95569871,0.00010889,2]
[346801072,1735297677619,-1966.43,0.00010889,2]
[346801073,1735297677651,-568.6,0.00010889,2]
[346801074,1735297677685,-500.0,0.00010889,2]
[346801075,1735297677719,-1399.47,0.00010889,2]
[346801076,1735297677753,-500.0,0.00010889,2]
[346801077,1735297677786,-500.0,0.00010889,2]
[346801078,1735297677837,-10785.4,0.00010889,2]
[346801079,1735297677873,-801.9,0.00010889,2]
[346801080,1735297677909,-500.0,0.00010889,2]
[346801081,1735297677945,-500.0,0.00010889,2]
[346801082,1735297677981,-500.0,0.00010889,2]
[346801083,1735297678016,-879.25,0.00010889,2]
[346801084,1735297678052,-500.0,0.00010889,2]
[346801085,1735297678086,-500.0,0.00010889,2]
[346801086,1735297678118,-500.56592744,0.00010889,2]
[346801087,1735297678152,-500.0,0.00010889,2]
[346801088,1735297678186,-500.0,0.00010889,2]
[346801089,1735297678220,-775.91,0.00010889,2]
[346801090,1735297678254,-1529.47,0.00010889,2]
[346801091,1735297678287,-500.0,0.00010889,2]
[346801092,1735297678321,-1789.64,0.00010889,2]
[346801093,1735297678355,-785.13,0.00010889,2]
[346801094,1735297678388,-500.0,0.00010889,2]
[346801095,1735297678421,-500.0,0.00010889,2]
[346801096,1735297678455,-3604.12,0.00010889,2]
[346801097,1735297678493,-500.0,0.00010889,2]
[346801098,1735297678528,-500.0,0.00010889,2]
[346801099,1735297678572,-500.0,0.00010889,2]
[346801100,1735297678607,-500.0,0.00010889,2]
[346801101,1735297678657,-501.23862519,0.00010889,2]
[346801102,1735297678704,-695.91,0.00010889,2]
[346801103,1735297678748,-2171.47,0.00010889,2]
[346801104,1735297678792,-500.0,0.00010889,2]
[346801105,1735297678839,-500.0,0.00010889,2]
[346801106,1735297678884,-542.50050641,0.00010889,2]
[346801107,1735297678920,-384.6048391,0.00010889,2]
[346801108,1735297678955,-500.0,0.00010889,2]
[346801109,1735297678991,-500.0,0.00010889,2]
[346801110,1735297679025,-1142.01,0.00010889,2]
[346801111,1735297679060,-500.0,0.00010889,2]
[346801112,1735297679096,-500.4033558,0.00010889,2]
[346801113,1735297679131,-500.0,0.00010889,2]
[346801114,1735297679167,-500.0,0.00010889,2]
[346801115,1735297679202,-2066.61,0.00010889,2]
[346801116,1735297679235,-524.15666831,0.00010889,2]
[346801117,1735297679270,-941.58,0.00010889,2]
[346801118,1735297679304,-1030.16,0.00010889,2]
[346801119,1735297679339,-1239.44,0.00010889,2]
[346801120,1735297679374,-500.0,0.00010889,2]
[346801121,1735297679409,-500.73,0.00010889,2]
[346801122,1735297679448,-501.19296815,0.00010889,2]
[346801123,1735297679486,-500.0,0.00010889,2]
[346801124,1735297679524,-1982.82,0.00010889,2]
[346801125,1735297679563,-502.80661379,0.00010889,2]
[346801126,1735297679600,-441.13897054,0.00010889,2]
[346801127,1735297679638,-583.3,0.00010889,2]
[346801128,1735297679683,-500.0,0.00010889,2]
[346801129,1735297679723,-2282.28,0.00010889,2]
[346801130,1735297679763,-500.0,0.00010889,2]
[346801131,1735297679803,-500.0,0.00010889,2]
[346801132,1735297679843,-549.25,0.00010889,2]
[346801133,1735297679880,-1361.36,0.00010889,2]
[346801134,1735297679918,-500.0,0.00010889,2]
[346801135,1735297679957,-553.00193417,0.00010889,2]
[346801136,1735297679993,-4770.1,0.00010889,2]
[346801137,1735297680032,-1383.55,0.00010889,2]
[346801138,1735297680071,-500.0,0.00010889,2]
[346801139,1735297680109,-500.0,0.00010889,2]
[346801140,1735297680150,-1462.96,0.00010889,2]
[346801141,1735297680188,-1394.12,0.00010889,2]
[346801142,1735297680227,-500.0,0.00010889,2]
[346801143,1735297680269,-500.0,0.00010889,2]
[346801144,1735297680307,-500.0,0.00010889,2]
[346801145,1735297680351,-163.14344836,0.00010889,2]
[346801146,1735297680391,-500.0,0.00010889,2]
[346801147,1735297680433,-931.16,0.00010889,2]
[346801148,1735297680474,-500.0,0.00010889,2]
[346801149,1735297680516,-1826.62,0.00010889,2]
[346801150,1735297680556,-841.75,0.00010889,2]
[346801151,1735297680597,-500.0,0.00010889,2]
[346801152,1735297680635,-3169.28,0.00010889,2]
[346801153,1735297680674,-500.0,0.00010889,2]
[346801154,1735297680710,-500.0,0.00010889,2]
[346801155,1735297680748,-500.0,0.00010889,2]
[346801156,1735297680786,-3572.14,0.00010889,2]
[346801157,1735297680827,-1287.05,0.00010889,2]
[346801158,1735297680865,-500.0,0.00010889,2]
[346801159,1735297680907,-913.49,0.00010889,2]
[346801160,1735297680946,-498.36984744,0.00010889,2]
[346801161,1735297680985,-500.0,0.00010889,2]
[346801162,1735297681023,-500.0,0.00010889,2]
[346801163,1735297681060,-500.0,0.00010889,2]
[346801164,1735297681097,-500.0,0.00010889,2]
[346801165,1735297681137,-500.0,0.00010889,2]
[346801166,1735297681175,-500.0,0.00010889,2]
[346801167,1735297681217,-1154.19,0.00010889,2]
[346801168,1735297681258,-564.32,0.00010889,2]
[346801169,1735297681295,-500.0,0.00010889,2]
[346801170,1735297681333,-1265.14,0.00010889,2]